fUST/lending_fUST_20240721
["ID","MTS","AMOUNT","RATE_DAILY","PERIOD"]
[332784388,1721519451986,-500.0,0.00013972,2]
[332784390,1721519451996,-546.76,0.00013972,2]
[332784393,1721519452008,-683.47,0.00013972,2]
[332784395,1721519452018,-500.0,0.00013972,2]
[332784397,1721519452028,-500.0,0.00013972,2]
[332784399,1721519452039,-1858.82,0.00013972,2]
[332784401,1721519452049,-596.98,0.00013972,2]
[332784403,1721519452059,-3062.95,0.00013972,2]
[332784405,1721519452068,-500.0,0.00013972,2]
[332784407,1721519452079,-753.04,0.00013972,2]
[332784409,1721519452090,-505.5,0.00013972,2]
[332784411,1721519452100,-2104.59,0.00013972,2]
[332784413,1721519452110,-1063.43,0.00013972,2]
[332784415,1721519452120,-500.0,0.00013972,2]
[332784417,1721519452130,-1172.97,0.00013972,2]
[332784419,1721519452142,-500.0,0.00013972,2]
[332784421,1721519452152,-632.64,0.00013972,2]
[332784424,1721519452164,-500.0,0.00013972,2]
[332784426,1721519452174,-313.35768215,0.00013972,2]
[332784428,1721519452184,-500.0,0.00013972,2]
[332784430,1721519452194,-776.89,0.00013972,2]
[332784432,1721519452204,-500.0,0.00013972,2]
[332784434,1721519452214,-2161.56,0.00013972,2]
[332784436,1721519452224,-500.0,0.00013972,2]
[332784438,1721519452236,-1042.84,0.00013972,2]
[332784440,1721519452247,-575.08,0.00013972,2]
[332784442,1721519452257,-510.07389428,0.00013972,2]
[332784444,1721519452267,-500.0,0.00013972,2]
[332784446,1721519452278,-500.0,0.00013972,2]
[332784448,1721519452288,-500.0,0.00013972,2]
[332784451,1721519452301,-3286.47,0.00013972,2]
[332784453,1721519452311,-679.77,0.00013972,2]
[332784455,1721519452323,-500.0,0.00013972,2]
[332784457,1721519452334,-500.0,0.00013972,2]
[332784459,1721519452345,-5601.84,0.00013972,2]
[332784461,1721519452355,-923.67,0.00013972,2]
[332784463,1721519452365,-500.0,0.00013972,2]
[332784465,1721519452375,-546.25,0.00013972,2]
[332784467,1721519452386,-511.02301535,0.00013972,2]
[332784469,1721519452395,-500.0,0.00013972,2]
[332784471,1721519452405,-500.0,0.00013972,2]
[332784473,1721519452415,-500.0,0.00013972,2]
[332784475,1721519452424,-500.0,0.00013972,2]
[332784477,1721519452435,-614.62,0.00013972,2]
[332784479,1721519452445,-776.76,0.00013972,2]
[332784482,1721519452456,-500.0,0.00013972,2]
[332784484,1721519452468,-2103.65,0.00013972,2]
[332784486,1721519452478,-500.0,0.00013972,2]
[332784488,1721519452489,-500.0,0.00013972,2]
[332784490,1721519452500,-500.0,0.00013972,2]
[332784492,1721519452513,-500.0,0.00013972,2]
[332784495,1721519452524,-500.0,0.00013972,2]
[332784497,1721519452534,-500.0,0.00013972,2]
[332784499,1721519452544,-8291.93,0.00013972,2]
[332784501,1721519452554,-678.0,0.00013972,2]
[332784502,1721519452564,-500.0,0.00013972,2]
[332784504,1721519452574,-1581.95,0.00013972,2]
[332784506,1721519452584,-500.0,0.00013972,2]
[332784508,1721519452594,-539.75121852,0.00013972,2]
[332784510,1721519452605,-2267.82,0.00013972,2]
[332784513,1721519452616,-503.55316172,0.00013972,2]
[332784515,1721519452629,-501.9546659,0.00013972,2]
[332784517,1721519452639,-521.4783236,0.00013972,2]
[332784519,1721519452649,-962.97,0.00013972,2]
[332784521,1721519452659,-500.0,0.00013972,2]
[332784523,1721519452670,-651.55,0.00013972,2]
[332784525,1721519452681,-500.0,0.00013972,2]
[332784527,1721519452691,-16858.36,0.00013972,2]
[332784529,1721519452702,-5035.15,0.00013972,2]
[332784531,1721519452713,-500.0,0.00013972,2]
[332784533,1721519452722,-500.0,0.00013972,2]
[332784536,1721519452734,-500.0,0.00013972,2]
[332784538,1721519452745,-500.0,0.00013972,2]
[332784540,1721519452758,-2579.67,0.00013972,2]
[332784542,1721519452768,-500.0,0.00013972,2]
[332784544,1721519452778,-500.0,0.00013972,2]
[332784546,1721519452791,-500.0,0.00013972,2]
[332784548,1721519452801,-500.0,0.00013972,2]
[332784550,1721519452811,-500.0,0.00013972,2]
[332784552,1721519452822,-281.9230277,0.00013972,2]
[332784554,1721519452832,-500.0,0.00013972,2]
[332784556,1721519452841,-501.52214706,0.00013972,2]
[332784558,1721519452853,-2795.92,0.00013972,2]
[332784560,1721519452862,-7401.26,0.00013972,2]
[332784562,1721519452872,-627.68,0.00013972,2]
[332784564,1721519452882,-2959.08,0.00013972,2]
[332784566,1721519452892,-500.0,0.00013972,2]
[332784568,1721519452901,-1140.724597,0.00013972,2]
[332784570,1721519452911,-1140.724597,0.00013972,2]
[332784572,1721519452920,-654.97,0.00013972,2]
[332784574,1721519452930,-1140.724597,0.00013972,2]
[332784576,1721519452940,-1140.724597,0.00013972,2]
[332784578,1721519452950,-500.0,0.00013972,2]
[332784580,1721519452959,-500.0,0.00013972,2]
[332784581,1721519452969,-500.0,0.00013972,2]
[332784582,1721519452978,-500.0,0.00013972,2]
[332784583,1721519452988,-3024.99,0.00013972,2]
[332784584,1721519452999,-500.0,0.00013972,2]
[332784585,1721519453009,-2044.79,0.00013972,2]
[332784586,1721519453019,-500.0,0.00013972,2]
[332784587,1721519453030,-1460.09,0.00013972,2]
[332784589,1721519453042,-643.71,0.00013972,2]
[332784591,1721519453053,-500.0,0.00013972,2]
[332784593,1721519453062,-500.0,0.00013972,2]
[332784595,1721519453073,-500.0,0.00013972,2]
[332784597,1721519453086,-500.0,0.00013972,2]
[332784599,1721519453097,-500.0,0.00013972,2]
[332784601,1721519453107,-1022.55,0.00013972,2]
[332784603,1721519453118,-946.75,0.00013972,2]
[332784605,1721519453127,-594.76,0.00013972,2]
[332784607,1721519453137,-4419.49,0.00013972,2]
[332784609,1721519453147,-1260.72,0.00013972,2]
[332784611,1721519453158,-500.0,0.00013972,2]
[332784613,1721519453169,-500.0,0.00013972,2]
[332784615,1721519453179,-564.97,0.00013972,2]
[332784617,1721519453189,-506.24968583,0.00013972,2]
[332784619,1721519453200,-2317.96,0.00013972,2]
[332784621,1721519453210,-500.0,0.00013972,2]
[332784623,1721519453221,-500.0,0.00013972,2]
[332784625,1721519453231,-910.55,0.00013972,2]
[332784627,1721519453241,-652.92,0.00013972,2]
[332784629,1721519453251,-500.0,0.00013972,2]
[332784631,1721519453262,-500.0,0.00013972,2]
[332784633,1721519453273,-500.0,0.00013972,2]
[332784636,1721519453283,-500.0,0.00013972,2]
[332784638,1721519453294,-10729.85,0.00013972,2]
[332784640,1721519453305,-500.0,0.00013972,2]
[332784642,1721519453315,-500.0,0.00013972,2]
[332784644,1721519453326,-500.0,0.00013972,2]
[332784646,1721519453335,-500.0,0.00013972,2]
[332784648,1721519453346,-595.23,0.00013972,2]
[332784650,1721519453356,-520.92944104,0.00013972,2]
[332784651,1721519453366,-1902.53,0.00013972,2]
[332784653,1721519453376,-1885.9,0.00013972,2]
[332784655,1721519453386,-471.64085717,0.00013972,2]
[332784657,1721519453396,-500.0,0.00013972,2]
[332784660,1721519453407,-453.62559309,0.00013972,2]
[332784662,1721519453419,-3665.51,0.00013972,2]
[332784664,1721519453430,-560.67,0.00013972,2]
[332784666,1721519453441,-500.0,0.00013972,2]
[332784668,1721519453453,-500.0,0.00013972,2]
[332784670,1721519453463,-500.0,0.00013972,2]
[332784672,1721519453473,-2501.31,0.00013972,2]
[332784674,1721519453484,-1017.95,0.00013972,2]
[332784677,1721519453496,-500.0,0.00013972,2]
[332784679,1721519453506,-500.0,0.00013972,2]
[332784686,1721519453570,-1794.25,0.00013972,2]
[332784688,1721519453581,-500.0,0.00013972,2]
[332784690,1721519453591,-1349.61,0.00013972,2]
[332784692,1721519453603,-1491.218364,0.00013972,2]
[332784694,1721519453613,-1491.218364,0.00013972,2]
[332784695,1721519453624,-525.39968545,0.00013972,2]
[332784696,1721519453635,-2905.48,0.00013972,2]
[332784697,1721519453645,-1128.85,0.00013972,2]
[332784698,1721519453654,-150.0,0.00013972,2]
[332784699,1721519453665,-500.0,0.00013972,2]
[332784700,1721519453674,-1491.218364,0.00013972,2]
[332784701,1721519453684,-400.0,0.00013972,2]
[332784702,1721519453695,-1491.218364,0.00013972,2]
[332784703,1721519453707,-500.0,0.00013972,2]
[332784704,1721519453718,-8268.0,0.00013972,2]
[332784705,1721519453731,-500.0,0.00013972,2]
[332784706,1721519453741,-500.0,0.00013972,2]
[332784707,1721519453750,-500.0,0.00013972,2]
[332784708,1721519453764,-500.0,0.00013972,2]
[332784709,1721519453773,-1045.11,0.00013972,2]
[332784710,1721519453783,-500.0,0.00013972,2]
[332784711,1721519453792,-1320.11,0.00013972,2]
[332784712,1721519453803,-4790.27,0.00013972,2]
[332784713,1721519453814,-666.25,0.00013972,2]
[332784714,1721519453825,-500.0,0.00013972,2]
[332784715,1721519453834,-500.0,0.00013972,2]
[332784716,1721519453845,-500.0,0.00013972,2]
[332784717,1721519453855,-500.0,0.00013972,2]
[332784718,1721519453865,-500.0,0.00013972,2]
[332784719,1721519453874,-925.61,0.00013972,2]
[332784720,1721519453884,-2809.91,0.00013972,2]
[332784721,1721519453893,-500.0,0.00013972,2]
[332784722,1721519453903,-500.0,0.00013972,2]
[332784723,1721519453913,-2467.16,0.00013972,2]
[332784724,1721519453922,-500.0,0.00013972,2]
[332784725,1721519453932,-1454.0,0.00013972,2]
[332784726,1721519453942,-500.0,0.00013972,2]
[332784727,1721519453952,-769.94,0.00013972,2]
[332784728,1721519453962,-500.0,0.00013972,2]
[332784729,1721519453972,-500.0,0.00013972,2]
[332784730,1721519453981,-500.0,0.00013972,2]
[332784731,1721519453991,-500.0,0.00013972,2]
[332784732,1721519454001,-500.0,0.00013972,2]
[332784733,1721519454012,-500.0,0.00013972,2]
[332784734,1721519454023,-500.0,0.00013972,2]
[332784735,1721519454033,-500.0,0.00013972,2]
[332784736,1721519454043,-1893.6,0.00013972,2]
[332784737,1721519454054,-500.0,0.00013972,2]
[332784738,1721519454064,-2300.07,0.00013972,2]
[332784739,1721519454074,-641.87,0.00013972,2]
[332784740,1721519454083,-13179.09,0.00013972,2]
[332784741,1721519454094,-212.88331305,0.00013972,2]
[332784742,1721519454104,-500.0,0.00013972,2]
[332784743,1721519454115,-500.0,0.00013972,2]
[332784744,1721519454126,-500.0,0.00013972,2]
[332784745,1721519454137,-1096.14,0.00013972,2]
[332784746,1721519454150,-500.0,0.00013972,2]
[332784747,1721519454164,-500.0,0.00013972,2]
[332784748,1721519454174,-7394.48,0.00013972,2]
[332784749,1721519454185,-500.0,0.00013972,2]
[332784750,1721519454198,-500.0,0.00013972,2]
[332784751,1721519454208,-589.15,0.00013972,2]
[332784752,1721519454217,-500.0,0.00013972,2]
[332784753,1721519454228,-500.0,0.00013972,2]
[332784754,1721519454238,-898.05,0.00013972,2]
[332784755,1721519454248,-261.30972445,0.00013972,2]
[332784756,1721519454258,-500.0,0.00013972,2]
[332784757,1721519454268,-500.0,0.00013972,2]
[332784758,1721519454278,-500.0,0.00013972,2]
[332784759,1721519454287,-957.59,0.00013972,2]
[332784760,1721519454296,-801.96,0.00013972,2]
[332784761,1721519454307,-265.7100527,0.00013972,2]
[332784762,1721519455143,-642.94098869,0.00013598,2]
[332784763,1721519455250,-2035.18871426,0.00013598,2]
[332784764,1721519455261,-500.0,0.00013698,2]
[332784765,1721519455271,-500.0,0.00013698,2]
[332784766,1721519455282,-465.76563236,0.00013972,2]
[332784767,1721519455296,-447.22431494,0.00013972,2]
[332784768,1721519455307,-500.0,0.00013972,2]
[332784769,1721519455318,-500.0,0.00013972,2]
[332784770,1721519455329,-500.0,0.00013972,2]
[332784771,1721519455339,-523.63,0.00013972,2]
[332784772,1721519455352,-1252.85,0.00013972,2]
[332784773,1721519455363,-1619.61,0.00013972,2]
[332784774,1721519455374,-4039.72,0.00013972,2]
[332784775,1721519455385,-520.61,0.00013972,2]
[332784776,1721519455395,-2675.51,0.00013972,2]
[332784777,1721519455408,-502.70337452,0.00013972,2]
[332784778,1721519455419,-2085.37,0.00013972,2]
[332784779,1721519455430,-502.88522141,0.00013972,2]
[332784780,1721519455439,-500.0,0.00013972,2]
[332784781,1721519455450,-150.112233,0.00014,2]
[332784782,1721519455461,-420.0,0.00014009,2]
[332784783,1721519455471,-500.0,0.00014246,2]
[332784784,1721519455482,-500.0,0.00014246,2]
[332784785,1721519455492,-500.0,0.00014246,2]
[332784786,1721519455504,-500.0,0.00014246,2]
[332784787,1721519455515,-500.0,0.00014246,2]
[332784788,1721519455525,-500.0,0.00014246,2]
[332784789,1721519455535,-500.0,0.00014246,2]
[332784790,1721519455545,-500.0,0.00014246,2]
[332784791,1721519455557,-295.29927215,0.00014246,2]
[332784792,1721519455568,-500.0,0.00014246,2]
[332784793,1721519455579,-500.0,0.00014246,2]
[332784794,1721519455589,-2007.06,0.00014246,2]
[332784795,1721519455600,-629.05,0.00014246,2]
[332784796,1721519455611,-2025.85,0.00014246,2]
[332784797,1721519455621,-577.81,0.00014246,2]
[332784798,1721519455632,-500.0,0.00014246,2]
[332784799,1721519455642,-500.0,0.00014246,2]
[332784800,1721519455651,-500.0,0.00014246,2]
[332784801,1721519455661,-500.0,0.00014246,2]
[332784802,1721519455671,-500.0,0.00014246,2]
[332784803,1721519455680,-500.0,0.00014246,2]
[332784804,1721519455690,-500.0,0.00014246,2]
[332784805,1721519455700,-1352.33,0.00014246,2]
[332784806,1721519455710,-688.33,0.00014246,2]
[332784807,1721519455720,-500.0,0.00014246,2]
[332784808,1721519455730,-500.0,0.00014246,2]
[332784809,1721519455739,-500.0,0.00014246,2]
[332784810,1721519455748,-500.0,0.00014246,2]
[332784811,1721519455763,-500.0,0.00014246,2]
[332784812,1721519455773,-500.0,0.00014246,2]
[332784813,1721519455782,-500.0,0.00014246,2]
[332784814,1721519455791,-500.0,0.00014246,2]
[332784815,1721519455803,-500.0,0.00014246,2]
[332784816,1721519455813,-500.0,0.00014246,2]
[332784817,1721519455822,-513.96833287,0.00014246,2]
[332784818,1721519455833,-500.0,0.00014246,2]
[332784819,1721519455842,-583.09,0.00014246,2]
[332784820,1721519455852,-500.0,0.00014246,2]
[332784821,1721519455861,-502.62402367,0.00014246,2]
[332784822,1721519455871,-510.1985245,0.00014246,2]
[332784823,1721519455881,-500.0,0.00014246,2]
[332784824,1721519455890,-1110.82,0.00014246,2]
[332784825,1721519455899,-500.0,0.00014246,2]
[332784826,1721519455909,-858.74,0.00014246,2]
[332784827,1721519455919,-500.0,0.00014246,2]
[332784828,1721519455928,-500.0,0.00014246,2]
[332784829,1721519455938,-676.5,0.00014246,2]
[332784830,1721519455948,-500.0,0.00014246,2]
[332784831,1721519455957,-571.92256385,0.00014246,2]
[332784832,1721519455967,-500.0,0.00014246,2]
[332784833,1721519455976,-500.0,0.00014246,2]
[332784834,1721519455986,-502.36113099,0.00014246,2]
[332784835,1721519455996,-500.0,0.00014246,2]
[332784836,1721519456005,-500.0,0.00014246,2]
[332784837,1721519456015,-797.72,0.00014246,2]
[332784838,1721519456025,-500.0,0.00014246,2]
[332784839,1721519456035,-500.0,0.00014246,2]
[332784840,1721519456044,-500.0,0.00014246,2]
[332784841,1721519456054,-500.0,0.00014246,2]
[332784842,1721519456064,-500.0,0.00014246,2]
[332784843,1721519456074,-500.0,0.00014246,2]
[332784844,1721519456083,-500.0,0.00014246,2]
[332784845,1721519456093,-500.0,0.00014246,2]
[332784846,1721519456103,-500.0,0.00014246,2]
[332784847,1721519456113,-500.0,0.00014246,2]
[332784848,1721519456123,-836.33,0.00014246,2]
[332784849,1721519456134,-555.28,0.00014246,2]
[332784850,1721519456144,-500.0,0.00014246,2]
[332784851,1721519456154,-500.0,0.00014246,2]
[332784852,1721519456164,-500.0,0.00014246,2]
[332784853,1721519456175,-907.91,0.00014246,2]
[332784854,1721519456186,-500.0,0.00014246,2]
[332784855,1721519456197,-500.0,0.00014246,2]
[332784856,1721519456207,-500.0,0.00014246,2]
[332784857,1721519456217,-553.54,0.00014246,2]
[332784858,1721519456228,-505.70540248,0.00014246,2]
[332784859,1721519456238,-500.0,0.00014246,2]
[332784860,1721519456248,-1029.32,0.00014246,2]
[332784861,1721519456259,-500.0,0.00014246,2]
[332784862,1721519456269,-500.0,0.00014246,2]
[332784863,1721519456279,-500.0,0.00014246,2]
[332784864,1721519456289,-500.0,0.00014246,2]
[332784865,1721519456298,-500.0,0.00014246,2]
[332784866,1721519456308,-500.0,0.00014246,2]
[332784867,1721519456318,-1115.34,0.00014246,2]
[332784868,1721519456327,-2605.92,0.00014246,2]
[332784869,1721519456338,-600.01472195,0.00014246,2]
[332784870,1721519456347,-500.0,0.00014246,2]
[332784871,1721519456357,-500.0,0.00014246,2]
[332784872,1721519456367,-500.0,0.00014246,2]
[332784873,1721519456376,-500.0,0.00014246,2]
[332784874,1721519456386,-500.0,0.00014246,2]
[332784875,1721519456395,-500.0,0.00014246,2]
[332784876,1721519456405,-223.886275,0.00014246,2]
[332784877,1721519456415,-500.0,0.00014246,2]
[332784878,1721519456425,-223.886275,0.00014246,2]
[332784879,1721519456434,-274.77327132,0.00014246,2]
[332784880,1721519456444,-500.0,0.00014246,2]
[332784881,1721519456454,-500.0,0.00014246,2]
[332784882,1721519456464,-500.0,0.00014246,2]
[332784883,1721519456474,-500.0,0.00014246,2]
[332784884,1721519456483,-1276.77,0.00014246,2]
[332784885,1721519456493,-500.0,0.00014246,2]
[332784886,1721519456503,-500.0,0.00014246,2]
[332784887,1721519456512,-500.0,0.00014246,2]
[332784888,1721519456523,-500.0,0.00014246,2]
[332784889,1721519456533,-518.24520718,0.00014246,2]
[332784890,1721519456543,-500.0,0.00014246,2]
[332784891,1721519456553,-798.67,0.00014246,2]
[332784892,1721519456562,-515.19,0.00014246,2]
[332784893,1721519456572,-500.0,0.00014246,2]
[332784894,1721519456581,-500.0,0.00014246,2]
[332784895,1721519456591,-500.0,0.00014246,2]
[332784896,1721519456601,-500.0,0.00014246,2]
[332784897,1721519456610,-500.0,0.00014246,2]
[332784898,1721519456619,-723.31,0.00014246,2]
[332784899,1721519456629,-500.0,0.00014246,2]
[332784900,1721519456639,-500.0,0.00014246,2]
[332784901,1721519456649,-500.0,0.00014246,2]
[332784902,1721519456658,-500.0,0.00014246,2]
[332784903,1721519456668,-500.0,0.00014246,2]
[332784904,1721519456677,-2335.04,0.00014246,2]
[332784905,1721519456687,-1576.68,0.00014246,2]
[332784906,1721519456697,-500.0,0.00014246,2]
[332784907,1721519456707,-868.47,0.00014246,2]
[332784908,1721519456717,-662.51,0.00014246,2]
[332784909,1721519456726,-500.0,0.00014246,2]
[332784910,1721519456735,-629.23,0.00014246,2]
[332784911,1721519456745,-825.81,0.00014246,2]
[332784912,1721519456756,-505.86,0.00014246,2]
[332784913,1721519456766,-2113.08,0.00014246,2]
[332784914,1721519456776,-2877.78,0.00014246,2]
[332784915,1721519456786,-500.0,0.00014246,2]
[332784916,1721519456797,-500.0,0.00014246,2]
[332784917,1721519456807,-367.30137337,0.00014246,2]
[332784918,1721519456818,-674.93,0.00014246,2]
[332784919,1721519456828,-500.0,0.00014246,2]
[332784920,1721519456840,-500.0,0.00014246,2]
[332784921,1721519456853,-585.55,0.00014246,2]
[332784922,1721519456867,-2922.57,0.00014246,2]
[332784923,1721519456878,-500.0,0.00014246,2]
[332784924,1721519456890,-1186.22,0.00014246,2]
[332784925,1721519456900,-500.0,0.00014246,2]
[332784926,1721519456910,-500.0,0.00014246,2]
[332784927,1721519456921,-833.89,0.00014246,2]
[332784928,1721519456933,-504.46428852,0.00014246,2]
[332784929,1721519456944,-500.0,0.00014246,2]
[332784930,1721519457124,-938.32,0.00014246,2]
[332784931,1721519457134,-606.41,0.00014246,2]
[332784932,1721519457144,-511.33,0.00014246,2]
[332784933,1721519457153,-500.0,0.00014246,2]
[332784934,1721519457163,-500.0,0.00014246,2]
[332784935,1721519457172,-500.0,0.00014246,2]
[332784936,1721519457181,-508.23868395,0.00014246,2]
[332784937,1721519457192,-500.0,0.00014246,2]
[332784938,1721519457207,-878.98,0.00014246,2]
[332784939,1721519457217,-572.82,0.00014246,2]
[332784940,1721519457226,-556.87,0.00014246,2]
[332784941,1721519457236,-500.0,0.00014246,2]
[332784942,1721519457246,-500.0,0.00014246,2]
[332784943,1721519457256,-1145.07,0.00014246,2]
[332784944,1721519457267,-500.0,0.00014246,2]
[332784945,1721519457277,-1034.77,0.00014246,2]
[332784946,1721519457287,-500.0,0.00014246,2]
[332784947,1721519457296,-500.0,0.00014246,2]
[332784948,1721519457308,-500.0,0.00014246,2]
[332784949,1721519457319,-602.35,0.00014246,2]
[332784950,1721519457330,-500.0,0.00014246,2]
[332784951,1721519457340,-500.0,0.00014246,2]
[332784952,1721519457350,-509.41848931,0.00014246,2]
[332784953,1721519457363,-1819.62,0.00014246,2]
[332784954,1721519457372,-500.0,0.00014246,2]
[332784955,1721519457383,-644.94,0.00014246,2]
[332784956,1721519457392,-824.76,0.00014246,2]
[332784957,1721519457402,-500.0,0.00014246,2]
[332784958,1721519457412,-629.36,0.00014246,2]
[332784959,1721519457421,-500.0,0.00014246,2]
[332784960,1721519457431,-500.0,0.00014246,2]
[332784961,1721519457440,-500.0,0.00014246,2]
[332784962,1721519457451,-4135.28,0.00014246,2]
[332784963,1721519457462,-500.0,0.00014246,2]
[332784964,1721519457472,-504.38908166,0.00014246,2]
[332784965,1721519457482,-1804.8,0.00014246,2]
[332784966,1721519457491,-500.0,0.00014246,2]
[332784967,1721519457501,-1511.84,0.00014246,2]
[332784968,1721519457512,-517.40359857,0.00014246,2]
[332784969,1721519457521,-789.05,0.00014246,2]
[332784970,1721519457531,-500.0,0.00014246,2]
[332784971,1721519457541,-698.84,0.00014246,2]
[332784972,1721519457550,-500.0,0.00014246,2]
[332784973,1721519457562,-791.54,0.00014246,2]
[332784974,1721519457573,-500.0,0.00014246,2]
[332784975,1721519457582,-555.5,0.00014246,2]
[332784976,1721519457591,-500.0,0.00014246,2]
[332784977,1721519457601,-512.82091932,0.00014246,2]
[332784978,1721519457612,-500.0,0.00014246,2]
[332784979,1721519457622,-601.68,0.00014246,2]
[332784980,1721519457632,-500.0,0.00014246,2]
[332784981,1721519457641,-585.64,0.00014246,2]
[332784982,1721519457651,-500.0,0.00014246,2]
[332784983,1721519457660,-500.0,0.00014246,2]
[332784984,1721519457669,-500.0,0.00014246,2]
[332784985,1721519457679,-501.43123297,0.00014246,2]
[332784986,1721519457689,-500.0,0.00014246,2]
[332784987,1721519457701,-622.82,0.00014246,2]
[332784988,1721519457710,-500.0,0.00014246,2]
[332784989,1721519457720,-545.35,0.00014246,2]
[332784990,1721519457730,-515.24245551,0.00014246,2]
[332784991,1721519457740,-500.0,0.00014246,2]
[332784992,1721519457750,-1663.61,0.00014246,2]
[332784993,1721519457765,-500.0,0.00014246,2]
[332784994,1721519457775,-500.0,0.00014246,2]
[332784995,1721519457785,-867.9,0.00014246,2]
[332784996,1721519457795,-302.496175,0.00014246,2]
[332784997,1721519457807,-505.19596975,0.00014246,2]
[332784998,1721519457817,-302.496175,0.00014246,2]
[332784999,1721519457827,-500.0,0.00014246,2]
[332785000,1721519457840,-1950.83,0.00014246,2]
[332785001,1721519457850,-500.0,0.00014246,2]
[332785002,1721519457859,-859.26,0.00014246,2]
[332785003,1721519457869,-500.0,0.00014246,2]
[332785004,1721519457879,-500.0,0.00014246,2]
[332785005,1721519457889,-879.62,0.00014246,2]
[332785006,1721519457899,-1876.93,0.00014246,2]
[332785007,1721519457909,-500.0,0.00014246,2]
[332785008,1721519457918,-2604.43,0.00014246,2]
[332785009,1721519457928,-1609.23,0.00014246,2]
[332785010,1721519457938,-833.39,0.00014246,2]
[332785011,1721519457948,-555.37,0.00014246,2]
[332785012,1721519457959,-177.09484028,0.00014246,2]
[332785013,1721519457968,-1692.13,0.00014246,2]
[332785014,1721519457978,-500.0,0.00014246,2]
[332785015,1721519457987,-1892.2,0.00014246,2]
[332785016,1721519457996,-500.0,0.00014246,2]
[332785017,1721519458007,-500.0,0.00014246,2]
[332785018,1721519458016,-500.0,0.00014246,2]
[332785019,1721519458025,-500.0,0.00014246,2]
[332785020,1721519458035,-500.0,0.00014246,2]
[332785021,1721519458045,-1247.1,0.00014246,2]
[332785022,1721519458054,-500.0,0.00014246,2]
[332785023,1721519458063,-500.0,0.00014246,2]
[332785024,1721519458073,-500.0,0.00014246,2]
[332785025,1721519458083,-935.09,0.00014246,2]
[332785026,1721519458093,-500.0,0.00014246,2]
[332785027,1721519458102,-1616.59,0.00014246,2]
[332785028,1721519458111,-500.0,0.00014246,2]
[332785029,1721519458120,-500.0,0.00014246,2]
[332785030,1721519458129,-500.0,0.00014246,2]
[332785031,1721519458139,-500.0,0.00014246,2]
[332785032,1721519458148,-500.0,0.00014246,2]
[332785033,1721519458159,-1764.74,0.00014246,2]
[332785034,1721519458169,-788.1,0.00014246,2]
[332785035,1721519458178,-28439.29,0.00014246,2]
[332785036,1721519458188,-876.08,0.00014246,2]
[332785037,1721519458198,-1041.97,0.00014246,2]
[332785038,1721519458207,-500.0,0.00014246,2]
[332785039,1721519458217,-659.37,0.00014246,2]
[332785040,1721519458226,-500.0,0.00014246,2]
[332785041,1721519458236,-500.0,0.00014246,2]
[332785042,1721519458245,-1360.72,0.00014246,2]
[332785043,1721519458255,-500.0,0.00014246,2]